[Event "Titled Tuesday Blitz February 14 Early 2023"]
[White "Grunberg, Mihai-Lucian"]
[Black "Torres Dominguez, David"]
[WhiteFideId "1204149"]
[BlackFideId "2220857"]
[WhiteElo "2401"]
[BlackElo "1994"]
[Result "0-1"]
[Round "02"]
[TimeControl "180+2"]
[Date "2023.02.15"]
[WhiteClock "0:01:56"]
[BlackClock "0:01:03"]

1. e4 {[%clk 0:03:00]}  Nc6 {[%clk 0:02:59]} 2. d4 {[%clk 0:03:00]}  e5 {[%clk 0:02:59]} 3. d5 {[%clk 0:03:01]}  Nce7 {[%clk 0:02:57]} 4. c4 {[%clk 0:03:01]}  Ng6 {[%clk 0:02:58]} 5. Nc3 {[%clk 0:03:02]}  Bc5 {[%clk 0:02:58]} 6. Bd3 {[%clk 0:03:01]}  Nf6 {[%clk 0:02:58]} 7. Nf3 {[%clk 0:02:59]}  a5 {[%clk 0:02:48]} 8. O-O {[%clk 0:02:58]}  d6 {[%clk 0:02:48]} 9. a3 {[%clk 0:02:52]}  O-O {[%clk 0:02:44]} 10. Rb1 {[%clk 0:02:52]}  Qe7 {[%clk 0:02:34]} 11. b4 {[%clk 0:02:52]}  axb4 {[%clk 0:02:31]} 12. axb4 {[%clk 0:02:52]}  Bb6 {[%clk 0:02:32]} 13. Na4 {[%clk 0:02:51]}  Ba7 {[%clk 0:02:30]} 14. c5 {[%clk 0:02:51]}  dxc5 {[%clk 0:02:20]} 15. Ba3 {[%clk 0:02:49]}  Bd7 {[%clk 0:01:58]} 16. Bc2 {[%clk 0:02:31]}  Bxa4 {[%clk 0:01:52]} 17. Bxa4 {[%clk 0:02:30]}  cxb4 {[%clk 0:01:52]} 18. Bxb4 {[%clk 0:02:30]}  Bc5 {[%clk 0:01:52]} 19. Bxc5 {[%clk 0:02:27]}  Qxc5 {[%clk 0:01:52]} 20. Bc2 {[%clk 0:02:16]}  b6 {[%clk 0:01:43]} 21. h3 {[%clk 0:02:13]}  Ra2 {[%clk 0:01:32]} 22. Bb3 {[%clk 0:02:10]}  Ra5 {[%clk 0:01:22]} 23. Rc1 {[%clk 0:02:04]}  Qd6 {[%clk 0:01:19]} 24. Rc6 {[%clk 0:02:03]}  Qe7 {[%clk 0:01:09]} 25. Qc2 {[%clk 0:02:01]}  Rc5 {[%clk 0:01:04]} 26. Rxc5 {[%clk 0:02:00]}  Qxc5 {[%clk 0:01:04]} 27. Qxc5 {[%clk 0:01:58]}  bxc5 {[%clk 0:01:05]} 28. Nd2 {[%clk 0:01:57]}  Nf4 {[%clk 0:01:04]} 29. Rc1 {[%clk 0:01:56]}  Ne2+ {[%clk 0:01:03]} 0-1


[Site "https://www.chess.com"]

[Event "Titled Tuesday Blitz February 14 Early 2023"]
[White "Jovic, Stanoje"]
[Black "Aung Thant Zin"]
[WhiteFideId "905020"]
[BlackFideId "13000063"]
[WhiteElo "2075"]
[BlackElo "2268"]
[Result "1-0"]
[Round "02"]
[TimeControl "180+2"]
[Date "2023.02.15"]
[WhiteClock "0:00:22"]
[BlackClock "0:00:28"]

1. c4 {[%clk 0:03:00]}  e5 {[%clk 0:02:57]} 2. g3 {[%clk 0:03:01]}  Nf6 {[%clk 0:02:58]} 3. Bg2 {[%clk 0:03:01]}  d5 {[%clk 0:02:58]} 4. cxd5 {[%clk 0:03:00]}  Nxd5 {[%clk 0:02:59]} 5. Nf3 {[%clk 0:03:00]}  Nc6 {[%clk 0:02:59]} 6. O-O {[%clk 0:03:00]}  Be7 {[%clk 0:02:59]} 7. d4 {[%clk 0:02:59]}  e4 {[%clk 0:02:51]} 8. Ne5 {[%clk 0:02:59]}  e3 {[%clk 0:02:11]} 9. fxe3 {[%clk 0:02:48]}  Nxe5 {[%clk 0:02:07]} 10. dxe5 {[%clk 0:02:46]}  Be6 {[%clk 0:02:03]} 11. a3 {[%clk 0:02:22]}  O-O {[%clk 0:02:02]} 12. Qc2 {[%clk 0:02:21]}  c6 {[%clk 0:01:59]} 13. Nc3 {[%clk 0:02:19]}  Nxc3 {[%clk 0:01:48]} 14. Qxc3 {[%clk 0:02:16]}  Qb6 {[%clk 0:01:44]} 15. b4 {[%clk 0:02:03]}  a5 {[%clk 0:01:41]} 16. Rb1 {[%clk 0:01:59]}  axb4 {[%clk 0:01:40]} 17. axb4 {[%clk 0:01:58]}  Rfd8 {[%clk 0:01:34]} 18. Be4 {[%clk 0:01:51]}  Qa6 {[%clk 0:01:11]} 19. Bd3 {[%clk 0:01:46]}  Qb6 {[%clk 0:01:03]} 20. Kg2 {[%clk 0:01:41]}  Ra4 {[%clk 0:00:54]} 21. Rf4 {[%clk 0:01:39]}  g5 {[%clk 0:00:46]} 22. Rd4 {[%clk 0:01:36]}  Rxd4 {[%clk 0:00:44]} 23. exd4 {[%clk 0:01:35]}  Rxb4 {[%clk 0:00:44]} 24. Rxb4 {[%clk 0:01:32]}  Qxb4 {[%clk 0:00:44]} 25. Qxb4 {[%clk 0:01:30]}  Bxb4 {[%clk 0:00:45]} 26. Bxg5 {[%clk 0:01:30]}  Bc3 {[%clk 0:00:43]} 27. e3 {[%clk 0:01:19]}  Bd5+ {[%clk 0:00:43]} 28. Kf2 {[%clk 0:01:18]}  b5 {[%clk 0:00:43]} 29. Ke2 {[%clk 0:01:18]}  b4 {[%clk 0:00:43]} 30. Kd1 {[%clk 0:01:15]}  Bb3+ {[%clk 0:00:42]} 31. Kc1 {[%clk 0:01:13]}  Ba4 {[%clk 0:00:40]} 32. Be7 {[%clk 0:01:09]}  b3 {[%clk 0:00:39]} 33. Ba3 {[%clk 0:01:06]}  Kg7 {[%clk 0:00:39]} 34. g4 {[%clk 0:01:05]}  Kh6 {[%clk 0:00:38]} 35. h4 {[%clk 0:01:04]}  Kg7 {[%clk 0:00:36]} 36. h5 {[%clk 0:01:03]}  Kh6 {[%clk 0:00:32]} 37. Bb2 {[%clk 0:00:58]}  Bb4 {[%clk 0:00:31]} 38. Kb1 {[%clk 0:00:53]}  Kg5 {[%clk 0:00:30]} 39. Bxh7 {[%clk 0:00:50]}  Kxg4 {[%clk 0:00:30]} 40. Bg8 {[%clk 0:00:45]}  Kxh5 {[%clk 0:00:30]} 41. Bxf7+ {[%clk 0:00:45]}  Kg4 {[%clk 0:00:31]} 42. Be8 {[%clk 0:00:39]}  Bb5 {[%clk 0:00:31]} 43. Bg6 {[%clk 0:00:38]}  Kf3 {[%clk 0:00:31]} 44. e6 {[%clk 0:00:38]}  Kxe3 {[%clk 0:00:27]} 45. Bh7 {[%clk 0:00:29]}  c5 {[%clk 0:00:27]} 46. dxc5 {[%clk 0:00:25]}  Bxc5 {[%clk 0:00:27]} 47. Bf6 {[%clk 0:00:24]}  Bd3+ {[%clk 0:00:25]} 48. Bxd3 {[%clk 0:00:23]}  Kxd3 {[%clk 0:00:26]} 49. Kb2 {[%clk 0:00:23]}  Kc4 {[%clk 0:00:27]} 50. e7 {[%clk 0:00:23]}  Kd5 {[%clk 0:00:28]} 51. e8=Q {[%clk 0:00:22]} 1-0


[Site "https://www.chess.com"]

[Event "Titled Tuesday Blitz February 14 Early 2023"]
[White "Larina, Maria"]
[Black "Andrews, Todd"]
[WhiteFideId "24113182"]
[BlackFideId "2012456"]
[WhiteElo "1948"]
[BlackElo "2220"]
[Result "0-1"]
[Round "02"]
[TimeControl "180+2"]
[Date "2023.02.15"]
[WhiteClock "0:00:03"]
[BlackClock "0:00:33"]

1. e4 {[%clk 0:03:00]}  d6 {[%clk 0:02:56]} 2. d4 {[%clk 0:03:00]}  g6 {[%clk 0:02:56]} 3. Nc3 {[%clk 0:03:00]}  Bg7 {[%clk 0:02:57]} 4. g3 {[%clk 0:03:00]}  Nd7 {[%clk 0:02:55]} 5. Bg2 {[%clk 0:03:00]}  e5 {[%clk 0:02:56]} 6. Nge2 {[%clk 0:02:51]}  Ngf6 {[%clk 0:02:56]} 7. O-O {[%clk 0:02:50]}  O-O {[%clk 0:02:56]} 8. h3 {[%clk 0:02:50]}  c6 {[%clk 0:02:53]} 9. a4 {[%clk 0:02:49]}  a6 {[%clk 0:02:46]} 10. g4 {[%clk 0:02:43]}  Re8 {[%clk 0:02:44]} 11. Ng3 {[%clk 0:02:42]}  exd4 {[%clk 0:02:42]} 12. Nce2 {[%clk 0:02:22]}  Nc5 {[%clk 0:02:37]} 13. f3 {[%clk 0:02:15]}  Ne6 {[%clk 0:02:12]} 14. g5 {[%clk 0:02:01]}  Nd7 {[%clk 0:02:11]} 15. f4 {[%clk 0:01:58]}  Qb6 {[%clk 0:01:53]} 16. a5 {[%clk 0:01:44]}  Qc5 {[%clk 0:01:51]} 17. Kh1 {[%clk 0:01:39]}  Nc7 {[%clk 0:01:49]} 18. f5 {[%clk 0:01:20]}  Be5 {[%clk 0:01:47]} 19. Bf4 {[%clk 0:01:07]}  d5 {[%clk 0:01:47]} 20. Bxe5 {[%clk 0:00:46]}  Nxe5 {[%clk 0:01:47]} 21. Nxd4 {[%clk 0:00:28]}  Nc4 {[%clk 0:01:34]} 22. f6 {[%clk 0:00:16]}  Ne3 {[%clk 0:01:28]} 23. Qd2 {[%clk 0:00:14]}  Nxg2 {[%clk 0:01:13]} 24. Kxg2 {[%clk 0:00:14]}  dxe4 {[%clk 0:01:13]} 25. Rf4 {[%clk 0:00:12]}  e3 {[%clk 0:01:12]} 26. Qd3 {[%clk 0:00:11]}  Nd5 {[%clk 0:01:09]} 27. Rh4 {[%clk 0:00:09]}  Bd7 {[%clk 0:00:49]} 28. Ne4 {[%clk 0:00:09]}  Qf8 {[%clk 0:00:45]} 29. c4 {[%clk 0:00:08]}  Nb4 {[%clk 0:00:43]} 30. Qxe3 {[%clk 0:00:08]}  c5 {[%clk 0:00:41]} 31. Nf3 {[%clk 0:00:06]}  Bc6 {[%clk 0:00:39]} 32. Nfd2 {[%clk 0:00:07]}  Nc2 {[%clk 0:00:39]} 33. Qg3 {[%clk 0:00:05]}  Nxa1 {[%clk 0:00:38]} 34. Rxh7 {[%clk 0:00:03]}  Kxh7 {[%clk 0:00:34]} 35. Qh4+ {[%clk 0:00:04]}  Kg8 {[%clk 0:00:34]} 36. Kh2 {[%clk 0:00:03]}  Bxe4 {[%clk 0:00:33]} 37. Nxe4 {[%clk 0:00:04]}  Rxe4 {[%clk 0:00:33]} 38. Qxe4 {[%clk 0:00:03]}  Nb3 {[%clk 0:00:33]} 39. Qd3 {[%clk 0:00:03]}  Nd4 {[%clk 0:00:33]} 40. b4 {[%clk 0:00:03]}  Qd6+ {[%clk 0:00:33]} 0-1


[Site "https://www.chess.com"]

[Event "Titled Tuesday Blitz February 14 Early 2023"]
[White "Tarasova, Viktoriya"]
[Black "Kuchava, Ana"]
[WhiteFideId "4175840"]
[BlackFideId "13605348"]
[WhiteElo "2226"]
[BlackElo "2101"]
[Result "1/2-1/2"]
[Round "02"]
[TimeControl "180+2"]
[Date "2023.02.15"]
[WhiteClock "0:00:07"]
[BlackClock "0:00:05"]

1. d4 {[%clk 0:02:54]}  d5 {[%clk 0:02:56]} 2. c4 {[%clk 0:02:54]}  e6 {[%clk 0:02:54]} 3. Nc3 {[%clk 0:02:53]}  Be7 {[%clk 0:02:51]} 4. cxd5 {[%clk 0:02:53]}  exd5 {[%clk 0:02:50]} 5. Bf4 {[%clk 0:02:53]}  c6 {[%clk 0:02:48]} 6. e3 {[%clk 0:02:53]}  Bf5 {[%clk 0:02:47]} 7. h3 {[%clk 0:02:51]}  Nf6 {[%clk 0:02:36]} 8. g4 {[%clk 0:02:51]}  Bg6 {[%clk 0:02:36]} 9. Nf3 {[%clk 0:02:51]}  Nbd7 {[%clk 0:02:32]} 10. Ne5 {[%clk 0:02:43]}  Nxe5 {[%clk 0:02:24]} 11. Bxe5 {[%clk 0:02:43]}  Bd6 {[%clk 0:02:18]} 12. Bxd6 {[%clk 0:02:35]}  Qxd6 {[%clk 0:02:19]} 13. Bg2 {[%clk 0:02:35]}  O-O {[%clk 0:02:15]} 14. O-O {[%clk 0:02:35]}  Rfe8 {[%clk 0:02:07]} 15. Re1 {[%clk 0:02:33]}  h6 {[%clk 0:02:01]} 16. f3 {[%clk 0:02:29]}  Re7 {[%clk 0:01:53]} 17. Qd2 {[%clk 0:02:29]}  Rae8 {[%clk 0:01:52]} 18. Re2 {[%clk 0:02:29]}  Nd7 {[%clk 0:01:47]} 19. Rae1 {[%clk 0:02:28]}  Nb6 {[%clk 0:01:46]} 20. b3 {[%clk 0:02:27]}  a5 {[%clk 0:01:39]} 21. f4 {[%clk 0:02:14]}  Be4 {[%clk 0:01:34]} 22. Nxe4 {[%clk 0:02:04]}  dxe4 {[%clk 0:01:35]} 23. Qxa5 {[%clk 0:02:04]}  Nd5 {[%clk 0:01:31]} 24. Qd2 {[%clk 0:02:00]}  Ra8 {[%clk 0:01:27]} 25. a4 {[%clk 0:01:58]}  Qb4 {[%clk 0:01:12]} 26. Qxb4 {[%clk 0:01:44]}  Nxb4 {[%clk 0:01:13]} 27. Rd2 {[%clk 0:01:40]}  g6 {[%clk 0:01:02]} 28. f5 {[%clk 0:01:30]}  gxf5 {[%clk 0:00:58]} 29. gxf5 {[%clk 0:01:30]}  Kg7 {[%clk 0:00:59]} 30. Rf1 {[%clk 0:01:21]}  Kf6 {[%clk 0:00:58]} 31. Rf4 {[%clk 0:01:21]}  Nd5 {[%clk 0:00:56]} 32. Rxe4 {[%clk 0:01:16]}  Rxe4 {[%clk 0:00:51]} 33. Bxe4 {[%clk 0:01:16]}  Nxe3 {[%clk 0:00:51]} 34. Rd3 {[%clk 0:00:56]}  Rg8+ {[%clk 0:00:39]} 35. Kf2 {[%clk 0:00:36]}  Nxf5 {[%clk 0:00:39]} 36. Rf3 {[%clk 0:00:36]}  Rg5 {[%clk 0:00:38]} 37. d5 {[%clk 0:00:30]}  cxd5 {[%clk 0:00:36]} 38. Bxd5 {[%clk 0:00:31]}  b6 {[%clk 0:00:37]} 39. Rc3 {[%clk 0:00:27]}  Ke5 {[%clk 0:00:36]} 40. Bf3 {[%clk 0:00:25]}  Nd4 {[%clk 0:00:34]} 41. b4 {[%clk 0:00:21]}  Rf5 {[%clk 0:00:31]} 42. Kg3 {[%clk 0:00:19]}  Rg5+ {[%clk 0:00:26]} 43. Kf2 {[%clk 0:00:19]}  Rf5 {[%clk 0:00:26]} 44. a5 {[%clk 0:00:19]}  bxa5 {[%clk 0:00:26]} 45. bxa5 {[%clk 0:00:20]}  Rf6 {[%clk 0:00:26]} 46. Ra3 {[%clk 0:00:19]}  Ra6 {[%clk 0:00:25]} 47. Bg2 {[%clk 0:00:17]}  Nc2 {[%clk 0:00:23]} 48. Ra4 {[%clk 0:00:16]}  Rf6+ {[%clk 0:00:20]} 49. Kg1 {[%clk 0:00:15]}  Ra6 {[%clk 0:00:13]} 50. Bf1 {[%clk 0:00:15]}  Ra7 {[%clk 0:00:12]} 51. a6 {[%clk 0:00:15]}  Ne3 {[%clk 0:00:11]} 52. Be2 {[%clk 0:00:14]}  Nd5 {[%clk 0:00:11]} 53. Ra5 {[%clk 0:00:14]}  Kd6 {[%clk 0:00:12]} 54. Kf2 {[%clk 0:00:14]}  Nc7 {[%clk 0:00:12]} 55. Kf3 {[%clk 0:00:13]}  Kc6 {[%clk 0:00:12]} 56. Kg4 {[%clk 0:00:14]}  Kb6 {[%clk 0:00:12]} 57. Ra1 {[%clk 0:00:14]}  Nxa6 {[%clk 0:00:08]} 58. Kh5 {[%clk 0:00:11]}  Nc5 {[%clk 0:00:06]} 59. Rxa7 {[%clk 0:00:11]}  Kxa7 {[%clk 0:00:07]} 60. Kxh6 {[%clk 0:00:11]}  Ne6 {[%clk 0:00:07]} 61. Bc4 {[%clk 0:00:09]}  Nf4 {[%clk 0:00:05]} 62. Bxf7 {[%clk 0:00:07]}  Nxh3 {[%clk 0:00:05]} 1/2-1/2


[Site "https://www.chess.com"]

[Event "Titled Tuesday Blitz February 14 Early 2023"]
[White "Michalski, Olaf"]
[Black "Gutkin, Ilya"]
[WhiteFideId "1106740"]
[BlackFideId "16203470"]
[WhiteElo "2273"]
[BlackElo "2273"]
[Result "1-0"]
[Round "02"]
[TimeControl "180+2"]
[Date "2023.02.15"]
[WhiteClock "0:00:08"]
[BlackClock "0:00:28"]

1. d4 {[%clk 0:02:59]}  e6 {[%clk 0:02:57]} 2. c4 {[%clk 0:02:56]}  b6 {[%clk 0:02:58]} 3. a3 {[%clk 0:02:54]}  Bb7 {[%clk 0:02:58]} 4. Nc3 {[%clk 0:02:54]}  f5 {[%clk 0:02:58]} 5. d5 {[%clk 0:02:38]}  Nf6 {[%clk 0:02:58]} 6. dxe6 {[%clk 0:02:38]}  dxe6 {[%clk 0:02:57]} 7. Qxd8+ {[%clk 0:02:38]}  Kxd8 {[%clk 0:02:58]} 8. Bf4 {[%clk 0:02:27]}  Nbd7 {[%clk 0:02:53]} 9. O-O-O {[%clk 0:02:19]}  Ng4 {[%clk 0:02:44]} 10. Nh3 {[%clk 0:01:34]}  Bc5 {[%clk 0:02:43]} 11. e3 {[%clk 0:01:06]}  h6 {[%clk 0:02:27]} 12. b4 {[%clk 0:01:00]}  Be7 {[%clk 0:02:24]} 13. f3 {[%clk 0:00:58]}  Nf6 {[%clk 0:02:21]} 14. Nb5 {[%clk 0:00:54]}  Ne8 {[%clk 0:02:01]} 15. Nd4 {[%clk 0:00:20]}  e5 {[%clk 0:01:51]} 16. Bxe5 {[%clk 0:00:19]}  Kc8 {[%clk 0:01:34]} 17. Nxf5 {[%clk 0:00:14]}  Bf8 {[%clk 0:01:31]} 18. Bc3 {[%clk 0:00:10]}  a5 {[%clk 0:01:27]} 19. Kb2 {[%clk 0:00:10]}  Ndf6 {[%clk 0:01:15]} 20. Nf4 {[%clk 0:00:09]}  Nd6 {[%clk 0:01:07]} 21. Ng6 {[%clk 0:00:09]}  Nxf5 {[%clk 0:00:47]} 22. Nxh8 {[%clk 0:00:08]}  Nxe3 {[%clk 0:00:47]} 23. Re1 {[%clk 0:00:09]}  axb4 {[%clk 0:00:28]} 24. axb4 {[%clk 0:00:08]} 1-0


[Site "https://www.chess.com"]

[Event "Titled Tuesday Blitz February 14 Early 2023"]
[White "Srebrnic, Marko"]
[Black "Bongo Akanga Ndjila, Barthelemy"]
[WhiteFideId "14603616"]
[BlackFideId "10609431"]
[WhiteElo "2366"]
[BlackElo "1824"]
[Result "1-0"]
[Round "02"]
[TimeControl "180+2"]
[Date "2023.02.15"]
[WhiteClock "0:02:25"]
[BlackClock "0:01:40"]

1. e4 {[%clk 0:02:44]}  e5 {[%clk 0:02:57]} 2. Nc3 {[%clk 0:02:42]}  Nc6 {[%clk 0:02:56]} 3. Bc4 {[%clk 0:02:43]}  Nf6 {[%clk 0:02:55]} 4. d3 {[%clk 0:02:43]}  Bc5 {[%clk 0:02:55]} 5. f4 {[%clk 0:02:43]}  O-O {[%clk 0:02:46]} 6. Nf3 {[%clk 0:02:43]}  d6 {[%clk 0:02:45]} 7. f5 {[%clk 0:02:44]}  Nd7 {[%clk 0:02:41]} 8. Bg5 {[%clk 0:02:43]}  Qe8 {[%clk 0:02:35]} 9. Nd5 {[%clk 0:02:43]}  Nb6 {[%clk 0:02:30]} 10. Nxc7 {[%clk 0:02:42]}  Qd7 {[%clk 0:02:30]} 11. Nxa8 {[%clk 0:02:42]}  Nxc4 {[%clk 0:02:27]} 12. dxc4 {[%clk 0:02:42]}  f6 {[%clk 0:02:28]} 13. Bh4 {[%clk 0:02:40]}  Nd4 {[%clk 0:02:25]} 14. Bf2 {[%clk 0:02:37]}  b6 {[%clk 0:02:20]} 15. c3 {[%clk 0:02:34]}  Nc6 {[%clk 0:02:09]} 16. Bxc5 {[%clk 0:02:30]}  bxc5 {[%clk 0:02:08]} 17. Qd5+ {[%clk 0:02:29]}  Kh8 {[%clk 0:02:06]} 18. O-O-O {[%clk 0:02:29]}  Bb7 {[%clk 0:02:05]} 19. Qxd6 {[%clk 0:02:29]}  Qxd6 {[%clk 0:01:57]} 20. Rxd6 {[%clk 0:02:30]}  Bxa8 {[%clk 0:01:56]} 21. Rhd1 {[%clk 0:02:30]}  Na5 {[%clk 0:01:55]} 22. Nd2 {[%clk 0:02:27]}  Kg8 {[%clk 0:01:51]} 23. b3 {[%clk 0:02:27]}  Kf7 {[%clk 0:01:47]} 24. Rd7+ {[%clk 0:02:25]}  Kg8 {[%clk 0:01:45]} 25. Rxa7 {[%clk 0:02:26]}  Nc6 {[%clk 0:01:42]} 26. Rc7 {[%clk 0:02:27]}  Na5 {[%clk 0:01:40]} 27. Rxc5 {[%clk 0:02:26]}  Rd8 {[%clk 0:01:40]} 28. Rxa5 {[%clk 0:02:25]} 1-0


[Site "https://www.chess.com"]

[Event "Titled Tuesday Blitz February 14 Early 2023"]
[White "Manukyan, Sargis V."]
[Black "Levine, David"]
[WhiteFideId "13303465"]
[BlackFideId "2011611"]
[WhiteElo "2253"]
[BlackElo "2040"]
[Result "1-0"]
[Round "02"]
[TimeControl "180+2"]
[Date "2023.02.15"]
[WhiteClock "0:00:24"]
[BlackClock "0:00:02"]

1. e4 {[%clk 0:03:00]}  e5 {[%clk 0:02:59]} 2. Nf3 {[%clk 0:03:00]}  Nc6 {[%clk 0:02:58]} 3. Bc4 {[%clk 0:03:00]}  Nf6 {[%clk 0:02:57]} 4. d3 {[%clk 0:02:59]}  h6 {[%clk 0:02:57]} 5. O-O {[%clk 0:02:58]}  d6 {[%clk 0:02:57]} 6. Nc3 {[%clk 0:02:58]}  g6 {[%clk 0:02:57]} 7. h3 {[%clk 0:02:58]}  Bg7 {[%clk 0:02:56]} 8. Be3 {[%clk 0:02:57]}  O-O {[%clk 0:02:56]} 9. a4 {[%clk 0:02:57]}  a6 {[%clk 0:02:53]} 10. Qd2 {[%clk 0:02:56]}  Kh7 {[%clk 0:02:52]} 11. d4 {[%clk 0:02:56]}  exd4 {[%clk 0:02:34]} 12. Nxd4 {[%clk 0:02:57]}  Nxd4 {[%clk 0:02:30]} 13. Bxd4 {[%clk 0:02:56]}  Be6 {[%clk 0:02:29]} 14. Nd5 {[%clk 0:02:26]}  Nxd5 {[%clk 0:02:22]} 15. exd5 {[%clk 0:02:25]}  Bf5 {[%clk 0:02:17]} 16. Bb3 {[%clk 0:02:20]}  Re8 {[%clk 0:02:12]} 17. Rfe1 {[%clk 0:02:19]}  Qd7 {[%clk 0:02:07]} 18. Bxg7 {[%clk 0:02:16]}  Kxg7 {[%clk 0:02:07]} 19. Qd4+ {[%clk 0:02:11]}  Kg8 {[%clk 0:02:06]} 20. a5 {[%clk 0:02:11]}  h5 {[%clk 0:01:53]} 21. Qf6 {[%clk 0:02:02]}  Rxe1+ {[%clk 0:01:45]} 22. Rxe1 {[%clk 0:02:00]}  Re8 {[%clk 0:01:46]} 23. Rxe8+ {[%clk 0:01:53]}  Qxe8 {[%clk 0:01:46]} 24. Qc3 {[%clk 0:01:49]}  Qe7 {[%clk 0:01:43]} 25. Qb4 {[%clk 0:01:46]}  Bc8 {[%clk 0:01:35]} 26. Qd2 {[%clk 0:01:40]}  Qe5 {[%clk 0:01:33]} 27. c3 {[%clk 0:01:38]}  Kg7 {[%clk 0:01:32]} 28. Bc2 {[%clk 0:01:37]}  Bf5 {[%clk 0:01:26]} 29. Bxf5 {[%clk 0:01:36]}  Qxf5 {[%clk 0:01:26]} 30. Qd4+ {[%clk 0:01:32]}  Qe5 {[%clk 0:01:10]} 31. Qxe5+ {[%clk 0:01:15]}  dxe5 {[%clk 0:01:09]} 32. f3 {[%clk 0:01:08]}  f5 {[%clk 0:01:07]} 33. Kf2 {[%clk 0:01:08]}  Kf6 {[%clk 0:01:05]} 34. Ke3 {[%clk 0:01:08]}  g5 {[%clk 0:01:01]} 35. c4 {[%clk 0:01:04]}  h4 {[%clk 0:00:58]} 36. b4 {[%clk 0:01:04]}  Ke7 {[%clk 0:00:58]} 37. c5 {[%clk 0:01:02]}  Kd7 {[%clk 0:00:52]} 38. Kd3 {[%clk 0:00:48]}  c6 {[%clk 0:00:47]} 39. Kc4 {[%clk 0:00:37]}  Kc7 {[%clk 0:00:46]} 40. d6+ {[%clk 0:00:34]}  Kd7 {[%clk 0:00:46]} 41. Kd3 {[%clk 0:00:34]}  Ke6 {[%clk 0:00:46]} 42. Ke3 {[%clk 0:00:34]}  Kd7 {[%clk 0:00:46]} 43. Kf2 {[%clk 0:00:34]}  Ke6 {[%clk 0:00:46]} 44. g3 {[%clk 0:00:34]}  hxg3+ {[%clk 0:00:45]} 45. Kxg3 {[%clk 0:00:34]}  Kd7 {[%clk 0:00:38]} 46. h4 {[%clk 0:00:33]}  gxh4+ {[%clk 0:00:37]} 47. Kxh4 {[%clk 0:00:34]}  Ke6 {[%clk 0:00:31]} 48. Kg5 {[%clk 0:00:32]}  f4 {[%clk 0:00:19]} 49. Kg4 {[%clk 0:00:30]}  Kf6 {[%clk 0:00:14]} 50. Kh3 {[%clk 0:00:29]}  Ke6 {[%clk 0:00:14]} 51. Kg2 {[%clk 0:00:30]}  Kd7 {[%clk 0:00:11]} 52. Kf2 {[%clk 0:00:30]}  Ke6 {[%clk 0:00:11]} 53. Ke2 {[%clk 0:00:30]}  Kd7 {[%clk 0:00:10]} 54. Kd2 {[%clk 0:00:29]}  Ke6 {[%clk 0:00:10]} 55. Kd3 {[%clk 0:00:29]}  Kf6 {[%clk 0:00:08]} 56. Ke4 {[%clk 0:00:20]}  Ke6 {[%clk 0:00:08]} 57. d7 {[%clk 0:00:21]}  Kxd7 {[%clk 0:00:08]} 58. Kxe5 {[%clk 0:00:22]}  Ke7 {[%clk 0:00:07]} 59. Kxf4 {[%clk 0:00:22]}  Kf6 {[%clk 0:00:08]} 60. Ke4 {[%clk 0:00:22]}  Ke6 {[%clk 0:00:07]} 61. f4 {[%clk 0:00:23]}  Kf6 {[%clk 0:00:07]} 62. f5 {[%clk 0:00:23]}  Kf7 {[%clk 0:00:07]} 63. Ke5 {[%clk 0:00:24]}  Ke7 {[%clk 0:00:07]} 64. f6+ {[%clk 0:00:24]}  Kf7 {[%clk 0:00:07]} 65. Kf5 {[%clk 0:00:24]}  Kf8 {[%clk 0:00:08]} 66. Ke6 {[%clk 0:00:24]}  Ke8 {[%clk 0:00:08]} 67. f7+ {[%clk 0:00:24]}  Kf8 {[%clk 0:00:08]} 68. Kf6 {[%clk 0:00:24]}  b5 {[%clk 0:00:02]} 69. axb6 {[%clk 0:00:24]} 1-0


[Site "https://www.chess.com"]

[Event "Titled Tuesday Blitz February 14 Early 2023"]
[White "Osuna Vega, Enrique"]
[Black "Chan, Kim Yew"]
[WhiteFideId "2219549"]
[BlackFideId "5717981"]
[WhiteElo "2061"]
[BlackElo "2340"]
[Result "0-1"]
[Round "02"]
[TimeControl "180+2"]
[Date "2023.02.15"]
[WhiteClock "0:00:54"]
[BlackClock "0:01:15"]

1. e4 {[%clk 0:02:59]}  b6 {[%clk 0:02:56]} 2. d4 {[%clk 0:02:59]}  Bb7 {[%clk 0:02:56]} 3. Bd3 {[%clk 0:02:59]}  e6 {[%clk 0:02:55]} 4. c4 {[%clk 0:02:59]}  Bb4+ {[%clk 0:02:55]} 5. Nc3 {[%clk 0:02:59]}  d6 {[%clk 0:02:41]} 6. Nf3 {[%clk 0:02:56]}  Nd7 {[%clk 0:02:41]} 7. O-O {[%clk 0:02:56]}  e5 {[%clk 0:02:41]} 8. a3 {[%clk 0:02:51]}  Bxc3 {[%clk 0:02:40]} 9. bxc3 {[%clk 0:02:52]}  Ne7 {[%clk 0:02:33]} 10. Bg5 {[%clk 0:02:45]}  h6 {[%clk 0:02:32]} 11. Bh4 {[%clk 0:02:45]}  g5 {[%clk 0:02:26]} 12. Bg3 {[%clk 0:02:45]}  Ng6 {[%clk 0:02:27]} 13. a4 {[%clk 0:02:38]}  a5 {[%clk 0:02:23]} 14. Rb1 {[%clk 0:02:34]}  Qe7 {[%clk 0:02:04]} 15. Re1 {[%clk 0:02:32]}  O-O-O {[%clk 0:02:00]} 16. Qe2 {[%clk 0:02:25]}  h5 {[%clk 0:02:00]} 17. h3 {[%clk 0:02:19]}  Rdg8 {[%clk 0:01:33]} 18. c5 {[%clk 0:02:18]}  dxc5 {[%clk 0:01:33]} 19. dxe5 {[%clk 0:02:15]}  g4 {[%clk 0:01:30]} 20. e6 {[%clk 0:02:08]}  Qxe6 {[%clk 0:01:25]} 21. hxg4 {[%clk 0:01:39]}  hxg4 {[%clk 0:01:26]} 22. Ng5 {[%clk 0:01:35]}  Qe7 {[%clk 0:01:25]} 23. f4 {[%clk 0:01:19]}  gxf3 {[%clk 0:01:21]} 24. Nxf3 {[%clk 0:01:19]}  Nge5 {[%clk 0:01:17]} 25. Bxe5 {[%clk 0:01:11]}  Nxe5 {[%clk 0:01:17]} 26. Nxe5 {[%clk 0:01:07]}  Qxe5 {[%clk 0:01:18]} 27. Ba6 {[%clk 0:01:01]}  Qh2+ {[%clk 0:01:15]} 28. Kf1 {[%clk 0:00:53]}  Qh1+ {[%clk 0:01:14]} 29. Kf2 {[%clk 0:00:54]}  Rxg2+ {[%clk 0:01:15]} 0-1


[Site "https://www.chess.com"]